bitfinex-derivatives/quotes_BTCF0:USTF0_20250509
["timestamp","ask_amount","ask_price","bid_price","bid_amount"]
[1746753727746,0.34512795,102780.0,102770.0,0.9836385]
[1746753728050,0.34512795,102780.0,102770.0,1.09248172]
[1746753728448,0.44302795,102780.0,102770.0,1.09248172]
[1746753729152,0.15050845,102780.0,102770.0,1.09248172]
[1746753729451,0.05590845,102780.0,102770.0,1.20132494]
[1746753729643,0.0991,102790.0,102780.0,0.1946195]
[1746753729838,0.2937006,102790.0,102780.0,1.05130594]
[1746753730246,0.2937006,102790.0,102780.0,1.21130594]
[1746753730654,0.3027006,102790.0,102780.0,1.21230594]
[1746753730854,0.01,102790.0,102780.0,1.21230594]
[1746753731044,0.2046006,102790.0,102780.0,1.21230594]
[1746753731246,0.3027006,102790.0,102780.0,1.21230594]
[1746753731446,0.4239603,102790.0,102780.0,1.21230594]
[1746753731646,0.4239603,102790.0,102780.0,0.74266272]
[1746753731847,0.4239603,102790.0,102780.0,1.10346272]
[1746753732043,0.4239603,102790.0,102780.0,0.74266272]
[1746753732253,0.5190603,102790.0,102780.0,1.10346272]
[1746753732454,0.5190603,102790.0,102780.0,0.85150594]
[1746753732656,0.5190603,102790.0,102780.0,1.21230594]
[1746753732848,0.5190603,102790.0,102780.0,0.9946195]
[1746753733048,0.5190603,102790.0,102780.0,1.21230594]
[1746753733546,0.5190603,102790.0,102780.0,0.9946195]
[1746753733755,0.5190603,102790.0,102780.0,1.21230594]
[1746753734649,0.2353597,102790.0,102780.0,1.21230594]
[1746753734954,0.1435597,102790.0,102780.0,1.21230594]
[1746753735154,0.0454597,102790.0,102780.0,1.21230594]
[1746753735852,0.1355597,102790.0,102780.0,1.21230594]
[1746753736347,0.1315597,102790.0,102780.0,1.21230594]
[1746753736547,0.1315597,102790.0,102780.0,1.29010594]
[1746753736850,0.3201603,102790.0,102780.0,0.7106195]
[1746753737052,0.4181603,102790.0,102780.0,0.34664322]
[1746753737255,0.5140603,102790.0,102780.0,0.2378]
[1746753737556,0.8748603,102790.0,102780.0,0.2378]
[1746753737761,0.8748603,102790.0,102780.0,0.34664322]
[1746753738252,0.8748603,102790.0,102780.0,0.18664322]
[1746753738659,0.8748603,102790.0,102780.0,0.0778]
[1746753739054,0.8748603,102790.0,102780.0,0.38126272]
[1746753739359,0.6802597,102790.0,102780.0,0.38126272]
[1746753739559,0.3194597,102790.0,102780.0,1.03910594]
[1746753739861,0.2235597,102790.0,102780.0,1.13070594]
[1746753740259,0.2235597,102790.0,102780.0,1.29070594]
[1746753741368,0.1255597,102790.0,102780.0,1.29070594]
[1746753741957,0.003,102790.0,102780.0,1.29070594]
[1746753742158,0.00243,102800.0,102790.0,0.1946006]
[1746753742361,0.00243,102800.0,102790.0,0.92944382]
[1746753742554,0.1970117,102800.0,102790.0,0.92944382]
[1746753743056,0.2958117,102800.0,102790.0,1.08944382]
[1746753743261,0.32946412,102800.0,102790.0,1.08944382]
[1746753743662,0.13488242,102800.0,102790.0,1.08944382]
[1746753743864,0.03608242,102800.0,102790.0,1.08944382]
[1746753744555,0.2050117,102800.0,102790.0,0.9806006]
[1746753744748,0.3038117,102800.0,102790.0,1.08944382]
[1746753745353,0.3934117,102800.0,102790.0,1.08944382]
[1746753745555,0.44159462,102800.0,102790.0,0.89584322]
[1746753745754,0.44159462,102800.0,102790.0,0.72964382]
[1746753745955,0.53179462,102800.0,102790.0,0.72964382]
[1746753746156,0.53179462,102800.0,102790.0,1.09044382]
[1746753746355,0.52779462,102800.0,102790.0,1.09144382]
[1746753746763,0.52779462,102800.0,102790.0,0.9826006]
[1746753746965,0.52779462,102800.0,102790.0,0.73064382]
[1746753747261,0.52779462,102800.0,102790.0,0.44154322]
[1746753747457,0.88859462,102800.0,102790.0,0.162]
[1746753748159,0.88859462,102800.0,102790.0,0.002]
[1746753748364,0.1946385,102770.0,102760.0,0.30350062]
[1746753748560,0.6527639,102770.0,102760.0,0.39370062]
[1746753748757,0.284834,102780.0,102770.0,0.1946385]
[1746753748962,0.474234,102780.0,102770.0,0.39368172]
[1746753749660,0.2796,102780.0,102770.0,0.6456385]
[1746753749865,0.2796,102780.0,102770.0,0.7353385]
[1746753750067,0.2796,102780.0,102770.0,0.93368172]
[1746753750263,0.2796,102780.0,102770.0,0.8248385]
[1746753750457,0.2796,102780.0,102770.0,0.93368172]
[1746753750659,0.2816,102780.0,102770.0,0.93368172]
[1746753751162,0.2836,102780.0,102770.0,0.93368172]
[1746753751858,0.4762195,102780.0,102770.0,0.93468172]
[1746753752569,0.4742195,102780.0,102770.0,0.93668172]
[1746753754871,0.3405726,102790.0,102780.0,0.1946195]
[1746753755064,0.2822,102790.0,102780.0,0.86006272]
[1746753755272,0.4768006,102790.0,102780.0,0.86006272]
[1746753755575,0.4768006,102790.0,102780.0,0.56714322]
[1746753755965,0.4768006,102790.0,102780.0,0.4583]
[1746753756377,0.4768006,102790.0,102780.0,0.3608]
[1746753756566,0.1946195,102780.0,102770.0,0.47878052]
[1746753756774,0.3843195,102780.0,102770.0,0.47878052]
[1746753756970,0.3843195,102780.0,102770.0,0.83958052]
[1746753756971,0.1897,102780.0,102770.0,0.83958052]
[1746753757165,0.1897,102780.0,102770.0,0.93788052]
[1746753757366,0.1897,102780.0,102770.0,0.8290373]
[1746753757666,0.1897,102780.0,102770.0,0.93788052]
[1746753757974,0.1897,102780.0,102770.0,0.93888052]
[1746753758368,0.1897,102780.0,102770.0,0.94088052]
[1746753758975,0.3843195,102780.0,102770.0,0.94088052]
[1746753759880,0.53295304,102780.0,102770.0,0.94088052]
[1746753760074,0.33833354,102780.0,102770.0,0.94088052]
[1746753760472,0.33833354,102780.0,102770.0,0.86308052]
[1746753760778,0.53295304,102780.0,102770.0,0.86308052]
[1746753761785,0.14863354,102780.0,102770.0,0.86308052]
[1746753762278,0.1846,102790.0,102780.0,0.1946195]
[1746753762580,0.3792006,102790.0,102780.0,1.04710594]
[1746753762780,0.3792006,102790.0,102780.0,0.8294195]
[1746753762977,0.3792006,102790.0,102780.0,1.04710594]
[1746753763376,0.1846,102790.0,102780.0,1.04710594]
[1746753764192,0.3792006,102790.0,102780.0,0.8294195]
[1746753764589,0.3802006,102790.0,102780.0,0.93826272]
[1746753765387,0.3802006,102790.0,102780.0,0.6348]
[1746753765587,0.7410006,102790.0,102780.0,0.0937]
[1746753765785,0.1946195,102780.0,102770.0,0.20484322]
[1746753765982,0.3814195,102780.0,102770.0,0.39858172]
[1746753766294,0.4793195,102780.0,102770.0,0.4559]
[1746753766696,0.8401195,102780.0,102770.0,0.0951]
[1746753767091,0.8401195,102780.0,102770.0,0.0961]
[1746753767393,0.8401195,102780.0,102770.0,0.39958172]
[1746753767692,0.8401195,102780.0,102770.0,0.40158172]
[1746753767890,0.2847,102780.0,102770.0,0.40158172]
[1746753768092,0.4793195,102780.0,102770.0,0.85748172]
[1746753768395,0.4803195,102780.0,102770.0,0.85548172]
[1746753769996,0.4803195,102780.0,102770.0,0.66084322]
[1746753770192,0.4803195,102780.0,102770.0,0.56474322]
[1746753770394,0.4803195,102780.0,102770.0,0.20394322]
[1746753770589,0.8411195,102780.0,102770.0,0.20394322]
[1746753770797,0.4803195,102780.0,102770.0,0.10884322]
[1746753771302,0.4803195,102780.0,102770.0,0.20434322]
[1746753771594,0.8411195,102780.0,102770.0,0.01384322]
[1746753771793,0.1946385,102770.0,102760.0,0.6509565]
[1746753771990,0.3809385,102770.0,102760.0,0.85239972]
[1746753772383,0.3809385,102770.0,102760.0,0.4563]
[1746753772584,0.7417385,102770.0,102760.0,0.0955]
[1746753772793,0.1946574,102760.0,102750.0,0.47353602]
[1746753772993,0.4706574,102760.0,102750.0,0.56403602]
[1746753773193,0.8314574,102760.0,102750.0,0.0038928]
[1746753774095,0.4706574,102760.0,102750.0,0.0048928]
[1746753774292,0.4706574,102760.0,102750.0,0.20423602]
[1746753774599,0.4706574,102760.0,102750.0,0.39891242]
[1746753774899,0.4706574,102760.0,102750.0,0.58491242]
[1746753775295,0.4706574,102760.0,102750.0,0.2833928]
[1746753775488,0.4706574,102760.0,102750.0,0.58691242]
[1746753775696,0.4706574,102760.0,102750.0,0.39223602]
[1746753775893,0.4706574,102760.0,102750.0,0.58691242]
[1746753777406,0.4706574,102760.0,102750.0,0.2833928]
[1746753777597,0.4706574,102760.0,102750.0,0.39223602]
[1746753777794,0.4706574,102760.0,102750.0,0.2833928]
[1746753778100,0.4706574,102760.0,102750.0,0.30043602]
[1746753779101,0.4706574,102760.0,102750.0,0.1915928]
[1746753779600,0.47780442,102760.0,102750.0,0.0973928]
[1746753779795,0.94030062,102760.0,102750.0,0.0068928]
[1746753779987,0.94030062,102760.0,102750.0,0.00558811]
[1746753780191,0.9914574,102760.0,102750.0,0.00558811]
[1746753780801,0.9914574,102760.0,102750.0,0.20833133]
[1746753781100,0.8314574,102760.0,102750.0,0.09948811]
[1746753781297,0.8314574,102760.0,102750.0,0.00558811]
[1746753781601,0.8314574,102760.0,102750.0,0.11443133]
[1746753781799,0.8314574,102760.0,102750.0,0.10178811]
[1746753782999,0.8314574,102760.0,102750.0,0.19588811]
[1746753783389,1.00357061,102760.0,102750.0,0.19588811]
[1746753784298,1.00357061,102760.0,102750.0,0.30473133]
[1746753784493,1.00357061,102760.0,102750.0,0.19588811]
[1746753785003,1.00357061,102760.0,102750.0,0.10178811]
[1746753785703,1.00357061,102760.0,102750.0,0.00558811]
[1746753786094,1.00357061,102760.0,102750.0,0.10128811]
[1746753786598,1.00357061,102760.0,102750.0,0.00558811]
[1746753787003,0.8314574,102760.0,102750.0,0.00558811]
[1746753787598,0.94745336,102760.0,102750.0,0.00558811]
[1746753787804,1.04477336,102760.0,102750.0,0.00558811]
[1746753788000,0.1946953,102740.0,102730.0,0.62877091]
[1746753788201,0.1946953,102740.0,102730.0,0.28867091]
[1746753788504,0.6519953,102740.0,102730.0,0.09877091]
[1746753788700,0.8437953,102740.0,102730.0,0.20761413]
[1746753788895,0.4829953,102740.0,102730.0,0.20761413]
[1746753789096,0.8437953,102740.0,102730.0,0.09877091]
[1746753789393,0.8437953,102740.0,102730.0,0.10377091]
[1746753790004,0.4829953,102740.0,102730.0,0.21261413]
[1746753790306,0.2920368,102750.0,102730.0,0.80256241]
[1746753790507,0.4838368,102750.0,102740.0,0.2897]
[1746753790705,0.8446368,102750.0,102740.0,0.59323852]
[1746753791007,0.4838368,102750.0,102740.0,0.39854322]
[1746753791207,0.8446368,102750.0,102740.0,0.1951]
[1746753791398,0.1946953,102740.0,102730.0,0.10107091]
[1746753791600,0.8321953,102740.0,102730.0,0.09957091]
[1746753791905,0.4713953,102740.0,102730.0,0.09957091]
[1746753792100,0.4713953,102740.0,102730.0,0.19537091]
[1746753792305,0.4713953,102740.0,102730.0,0.30121413]
[1746753792606,0.4713953,102740.0,102730.0,0.55317091]
[1746753792801,0.8321953,102740.0,102730.0,0.30121413]
[1746753793007,0.8321953,102740.0,102730.0,0.30321413]
[1746753793199,0.4713953,102740.0,102730.0,0.30321413]
[1746753793400,0.4738253,102740.0,102730.0,0.30021413]
[1746753793602,0.62198196,102740.0,102730.0,0.30021413]
[1746753794305,0.62298196,102740.0,102730.0,0.30521413]
[1746753795009,0.62298196,102740.0,102730.0,0.19637091]
[1746753795209,0.62298196,102740.0,102730.0,0.30521413]
[1746753795509,0.62298196,102740.0,102730.0,0.19637091]
[1746753795710,0.62298196,102740.0,102730.0,0.30521413]
[1746753796112,0.98378196,102740.0,102730.0,0.19637091]
[1746753796303,0.98378196,102740.0,102730.0,0.10057091]
[1746753796700,0.98378196,102740.0,102730.0,0.00927091]
[1746753796701,0.94446852,102740.0,102730.0,0.00927091]
[1746753797210,0.8356253,102740.0,102730.0,0.00927091]
[1746753797505,0.8356253,102740.0,102730.0,0.10227091]
[1746753797810,0.64093,102740.0,102730.0,0.10227091]
[1746753798897,0.45743,102740.0,102730.0,0.30701413]
[1746753799102,0.36423,102740.0,102730.0,0.46701413]
[1746753799709,0.00343,102740.0,102730.0,0.82781413]
[1746753799905,0.00343,102740.0,102730.0,1.53595013]
[1746753800313,0.00343,102740.0,102730.0,1.53567922]
[1746753801619,0.00343,102740.0,102730.0,1.18834322]
[1746753802304,0.00343,102740.0,102730.0,0.82754322]
[1746753802712,0.00343,102740.0,102730.0,0.82781413]
[1746753803108,0.17211321,102770.0,102730.0,0.90561413]
[1746753803411,0.3608,102760.0,102740.0,0.6441]
[1746753803717,0.6351,102760.0,102750.0,0.0932]
[1746753804015,0.1824,102760.0,102750.0,0.0932]
[1746753804216,2.34892644,102760.0,102700.0,0.1]
[1746753804512,0.3608,102720.0,102710.0,0.17551847]
[1746753804712,0.3608,102730.0,102710.0,0.64516169]
[1746753804908,0.0931,102730.0,102720.0,0.29354322]
[1746753805107,0.0931,102730.0,102720.0,0.45354322]
[1746753805315,0.4539,102730.0,102720.0,0.45354322]
[1746753805514,0.4539,102730.0,102720.0,0.3447]
[1746753805714,0.4539,102730.0,102720.0,0.45354322]
[1746753806118,0.4539,102730.0,102720.0,0.3447]
[1746753806313,0.4539,102730.0,102720.0,0.1847]
[1746753806614,0.50339614,102730.0,102720.0,0.1847]
[1746753807315,0.50339614,102730.0,102720.0,0.65434322]
[1746753807316,0.04949614,102730.0,102720.0,0.65434322]
[1746753807513,0.37095803,102730.0,102720.0,0.75144322]
[1746753807819,0.37095803,102730.0,102720.0,0.6426]
[1746753808013,0.46985803,102730.0,102720.0,0.6426]
[1746753808213,0.47185803,102730.0,102720.0,0.6426]
[1746753808616,0.94150125,102730.0,102720.0,0.0971]
[1746753809218,0.99121399,102730.0,102720.0,0.0971]
[1746753809511,0.88237077,102730.0,102720.0,0.0971]
[1746753809917,0.88237077,102730.0,102720.0,0.1876]
[1746753810516,0.99121399,102730.0,102720.0,0.002]
[1746753810817,0.97971877,102730.0,102720.0,0.002]
[1746753811018,1.08856199,102730.0,102720.0,0.002]
[1746753811219,0.88237077,102730.0,102720.0,0.002]
[1746753811415,0.99121399,102730.0,102720.0,0.002]
[1746753813020,0.88237077,102730.0,102720.0,0.002]
[1746753813214,0.99121399,102730.0,102720.0,0.0978]
[1746753813413,0.99121399,102730.0,102720.0,0.002]
[1746753814312,1.08856199,102730.0,102720.0,0.002]
[1746753814619,1.08856199,102730.0,102700.0,0.1958]
[1746753814813,0.3608,102710.0,102700.0,0.1958]
[1746753815213,0.4577,102710.0,102700.0,0.2941]
[1746753815616,0.5558,102710.0,102700.0,0.2941]
[1746753816316,0.5558,102710.0,102700.0,0.2951]
[1746753817018,0.5568,102710.0,102700.0,0.2991]
[1746753817907,0.5568,102710.0,102700.0,0.3021]
[1746753818112,0.68037088,102710.0,102700.0,0.3021]
[1746753819512,0.68337088,102710.0,102700.0,0.2981]
[1746753820019,0.68337088,102710.0,102700.0,0.31291179]
[1746753820914,0.68737088,102710.0,102700.0,0.30991179]
[1746753821117,0.66264344,102710.0,102700.0,0.30991179]
[1746753821821,0.66264344,102710.0,102700.0,0.21161179]
[1746753822324,0.66264344,102710.0,102700.0,0.30861179]
[1746753822829,0.66264344,102710.0,102700.0,0.21161179]
[1746753823123,0.66264344,102710.0,102700.0,0.1968]
[1746753823509,0.77148666,102710.0,102700.0,0.1968]
[1746753823713,0.77148666,102710.0,102700.0,0.101]
[1746753825314,0.77048666,102710.0,102700.0,0.101]
[1746753826023,0.91884666,102710.0,102700.0,0.09103369]
[1746753827723,0.91884666,102710.0,102700.0,0.08533388]
[1746753829723,1.00475564,102710.0,102700.0,0.08533388]
[1746753830124,1.00475564,102710.0,102700.0,0.17883388]
[1746753830524,1.00475564,102710.0,102700.0,0.36623388]
[1746753831426,1.05419726,102710.0,102700.0,0.36623388]
[1746753832122,0.85919726,102710.0,102700.0,0.6350771]
[1746753832630,0.95379726,102710.0,102700.0,0.6350771]
[1746753832830,1.15344048,102710.0,102700.0,0.52623388]
[1746753833020,1.04459726,102710.0,102700.0,0.52623388]
[1746753833221,1.04459726,102710.0,102700.0,0.36623388]
[1746753834229,1.04459726,102710.0,102700.0,0.52623388]
[1746753835930,1.15344048,102710.0,102700.0,0.43233388]
[1746753836227,1.15344048,102710.0,102700.0,0.17883388]
[1746753836528,1.04459726,102710.0,102700.0,0.07649029]
[1746753837531,0.1947711,102700.0,102690.0,0.1815738]
[1746753837726,0.8320711,102700.0,102690.0,0.1815738]
[1746753837923,0.8320711,102700.0,102690.0,0.0009738]
[1746753838328,0.94091432,102700.0,102690.0,0.0009738]
[1746753838534,0.8320711,102700.0,102690.0,0.0009738]
[1746753838728,0.8340711,102700.0,102690.0,0.0019738]
[1746753839034,0.94391432,102700.0,102690.0,0.0019738]
[1746753840428,0.95114501,102700.0,102690.0,0.0019738]
[1746753841123,0.84230179,102700.0,102690.0,0.0019738]
[1746753841434,0.95114501,102700.0,102690.0,0.0019738]
[1746753841627,0.84230179,102700.0,102690.0,0.1907738]
[1746753841934,0.88256002,102700.0,102690.0,0.1907738]
[1746753842137,0.70156002,102700.0,102690.0,0.1907738]
[1746753842641,0.79636002,102700.0,102690.0,0.1907738]
[1746753842938,0.34076002,102700.0,102690.0,0.1907738]
[1746753843127,0.34076002,102700.0,102690.0,0.45961702]
[1746753843332,0.34076002,102700.0,102690.0,0.3507738]
[1746753843535,0.43006002,102700.0,102690.0,0.3507738]
[1746753844628,0.79086002,102700.0,102690.0,0.3507738]
[1746753845239,0.79086002,102700.0,102690.0,0.1907738]
[1746753847235,0.79086002,102700.0,102690.0,0.0019738]
[1746753847539,0.89970324,102700.0,102690.0,0.0019738]
[1746753847935,0.79086002,102700.0,102690.0,0.0019738]
[1746753850038,0.79086002,102700.0,102680.0,0.10112156]
[1746753850039,0.1947901,102690.0,102680.0,0.10112156]
[1746753850341,0.8394901,102690.0,102680.0,0.10112156]
[1746753850542,0.8394901,102690.0,102680.0,0.00292156]
[1746753850934,0.8394901,102690.0,102680.0,0.09612156]
[1746753851542,0.8404901,102690.0,102680.0,0.09612156]
[1746753852047,0.8414901,102690.0,102680.0,0.09612156]
[1746753853041,0.8414901,102690.0,102680.0,0.19272156]
[1746753853737,0.1948091,102680.0,102670.0,0.06832156]
[1746753853938,0.194828,102670.0,102660.0,0.19547408]
[1746753854140,0.831028,102670.0,102660.0,0.35547408]
[1746753854739,0.8792278,102670.0,102660.0,0.35547408]
[1746753855050,0.8792278,102670.0,102660.0,0.35847408]
[1746753855235,0.8792278,102670.0,102660.0,0.19847408]
[1746753855437,0.6997278,102670.0,102660.0,0.5021643]
[1746753855638,0.2430278,102670.0,102660.0,0.77696052]
[1746753855847,0.194828,102670.0,102660.0,0.97180752]
[1746753856040,0.1958136,102680.0,102660.0,0.87438102]
[1746753856242,0.1958136,102680.0,102670.0,0.85407122]
[1746753856442,0.1958136,102680.0,102670.0,0.65924322]
[1746753856843,0.2449574,102680.0,102670.0,0.65924322]
[1746753857040,0.2449574,102680.0,102670.0,0.91664322]
[1746753857350,0.2449574,102680.0,102670.0,1.002628]
[1746753857655,0.2449574,102680.0,102670.0,1.11147122]
[1746753858053,0.2439574,102680.0,102670.0,1.11247122]
[1746753858256,0.40768967,102680.0,102670.0,1.11247122]
[1746753858952,0.40868967,102680.0,102670.0,1.11447122]
[1746753859148,0.40868967,102680.0,102670.0,0.8108]
[1746753859354,0.49908967,102680.0,102670.0,0.55884322]
[1746753859556,0.49908967,102680.0,102670.0,0.45]
[1746753859860,0.68808967,102680.0,102670.0,0.45]
[1746753860056,1.04888967,102680.0,102670.0,0.45]
[1746753860361,1.04888967,102680.0,102670.0,0.55884322]
[1746753860554,0.68808967,102680.0,102670.0,0.55884322]
[1746753860859,0.62317265,102680.0,102670.0,0.55884322]
[1746753862553,0.43417265,102680.0,102670.0,0.75367122]
[1746753862961,0.43417265,102680.0,102670.0,0.91964322]
[1746753863156,0.43417265,102680.0,102670.0,1.11447122]
[1746753863548,0.43417265,102680.0,102670.0,0.91964322]
[1746753863759,0.43417265,102680.0,102670.0,0.55884322]
[1746753863959,0.43417265,102680.0,102670.0,0.91964322]
[1746753864461,0.43417265,102680.0,102670.0,0.55884322]
[1746753864666,0.4835867,102680.0,102670.0,0.55884322]
[1746753865053,0.4835867,102680.0,102670.0,1.11447122]
[1746753865260,0.4835867,102680.0,102670.0,0.55884322]
[1746753865556,0.4835867,102680.0,102670.0,0.8108]
[1746753865757,0.4835867,102680.0,102670.0,0.55884322]
[1746753865961,0.4835867,102680.0,102670.0,0.75367122]
[1746753866557,0.4835867,102680.0,102670.0,0.55884322]
[1746753867454,0.4835867,102680.0,102670.0,0.45]
[1746753867653,0.4835867,102680.0,102670.0,0.55884322]
[1746753867957,0.49923142,102680.0,102670.0,0.45]
[1746753868161,0.49923142,102680.0,102670.0,0.55884322]
[1746753868363,0.49923142,102680.0,102670.0,0.55784322]
[1746753868559,0.95193142,102680.0,102670.0,0.55784322]
[1746753868762,0.59113142,102680.0,102670.0,0.55784322]
[1746753868965,0.59113142,102680.0,102670.0,0.449]
[1746753869264,0.59113142,102680.0,102670.0,0.55784322]
[1746753869562,0.59113142,102680.0,102670.0,0.449]
[1746753869856,0.59113142,102680.0,102670.0,0.448]
[1746753870061,0.59113142,102680.0,102670.0,0.447]
[1746753870257,0.59213142,102680.0,102670.0,0.55684322]
[1746753870660,0.59213142,102680.0,102670.0,0.448]
[1746753870859,0.95293142,102680.0,102670.0,0.448]
[1746753871061,0.95293142,102680.0,102670.0,0.55684322]
[1746753871461,0.82932848,102680.0,102670.0,0.55684322]
[1746753872157,0.82932848,102680.0,102670.0,0.288]
[1746753872356,0.82932848,102680.0,102670.0,0.39684322]
[1746753872762,0.82932848,102680.0,102670.0,0.288]
[1746753872960,0.82932848,102680.0,102670.0,0.39684322]
[1746753873170,0.82932848,102680.0,102670.0,0.448]
[1746753873561,0.82932848,102680.0,102670.0,0.75167122]
[1746753873763,0.46852848,102680.0,102670.0,1.11247122]
[1746753873957,0.46852848,102680.0,102670.0,0.91764322]
[1746753874163,0.46852848,102680.0,102670.0,0.448]
[1746753874464,0.46852848,102680.0,102670.0,0.55684322]
[1746753874660,0.47095848,102680.0,102670.0,0.448]
[1746753875170,0.47095848,102680.0,102670.0,0.55684322]
[1746753875368,0.47095848,102680.0,102670.0,1.11247122]
[1746753875666,0.37905848,102680.0,102670.0,1.11247122]
[1746753875869,0.37905848,102680.0,102670.0,0.8088]
[1746753876068,0.37905848,102680.0,102670.0,0.55684322]
[1746753876272,0.37905848,102680.0,102670.0,0.448]
[1746753876669,0.47065848,102680.0,102670.0,0.448]
[1746753876869,0.47065848,102680.0,102670.0,0.55684322]
[1746753877963,0.47065848,102680.0,102670.0,0.75167122]
[1746753878163,0.47065848,102680.0,102670.0,0.448]
[1746753878658,0.47065848,102680.0,102670.0,0.55684322]
[1746753878863,0.47065848,102680.0,102670.0,0.448]
[1746753879363,0.47065848,102680.0,102670.0,0.45944322]
[1746753879568,0.47065848,102680.0,102670.0,0.55064322]
[1746753883078,0.47065848,102680.0,102670.0,0.74547122]
[1746753883376,0.37905848,102680.0,102670.0,1.10627122]
[1746753883570,0.37905848,102680.0,102670.0,0.74547122]
[1746753883766,0.37905848,102680.0,102670.0,1.10627122]
[1746753884769,0.37905848,102680.0,102670.0,0.4418]
[1746753884969,0.46655848,102680.0,102670.0,0.4418]
[1746753885169,0.46655848,102680.0,102670.0,0.55064322]
[1746753886270,0.46655848,102680.0,102670.0,0.3506]
[1746753886472,0.82735848,102680.0,102670.0,0.3606]
[1746753886677,0.82735848,102680.0,102670.0,0.46944322]
[1746753886972,0.194828,102670.0,102660.0,0.00097408]
[1746753887176,0.822828,102670.0,102660.0,0.00097408]
[1746753888379,0.823828,102670.0,102660.0,0.00297408]
[1746753889578,0.629,102670.0,102660.0,0.00397408]
[1746753889775,0.0897,102670.0,102660.0,0.96950752]
[1746753890071,0.001,102670.0,102660.0,1.05980752]
[1746753890280,0.0919,102670.0,102660.0,1.21980752]
[1746753891073,0.0919,102670.0,102660.0,0.85900752]
[1746753891377,0.0919,102670.0,102660.0,1.21980752]
[1746753891778,0.13217108,102670.0,102660.0,1.21980752]
[1746753892271,0.32699908,102670.0,102660.0,1.21980752]
[1746753892477,0.04127108,102670.0,102660.0,1.21980752]
[1746753893566,0.23609908,102670.0,102660.0,1.21980752]
[1746753893770,0.23852908,102670.0,102660.0,1.21980752]
[1746753895582,0.33152908,102670.0,102660.0,1.00212108]
[1746753895781,0.33152908,102670.0,102660.0,1.21980752]
[1746753897586,0.13670108,102670.0,102660.0,1.21980752]
[1746753897779,0.33152908,102670.0,102660.0,1.21980752]
[1746753898081,0.0491438,102680.0,102670.0,0.194828]
[1746753898284,0.51240615,102690.0,102680.0,0.1948091]
[1746753898575,0.60150615,102690.0,102680.0,0.57725232]
[1746753898781,0.60150615,102690.0,102680.0,0.4684091]
[1746753898977,0.60150615,102690.0,102680.0,0.57725232]
[1746753899370,0.55280785,102690.0,102680.0,0.57725232]
[1746753899582,0.35801375,102690.0,102680.0,0.57725232]
[1746753899882,0.27191375,102690.0,102680.0,0.57725232]
[1746753900082,0.46670385,102690.0,102680.0,0.73725232]
[1746753900777,0.27191375,102690.0,102680.0,0.73725232]
[1746753900984,0.2884651,102690.0,102680.0,0.73725232]
[1746753901277,0.4832552,102690.0,102680.0,0.73725232]
[1746753901482,0.4862552,102690.0,102680.0,0.6294091]
[1746753901677,0.4862552,102690.0,102680.0,0.73825232]
[1746753901883,0.2914651,102690.0,102680.0,0.73825232]
[1746753902183,0.2884651,102690.0,102680.0,0.73725232]
[1746753902376,0.4842552,102690.0,102680.0,0.73925232]
[1746753902576,0.2894651,102690.0,102680.0,0.73925232]
[1746753902776,0.4842552,102690.0,102680.0,0.73925232]
[1746753902983,0.5733552,102690.0,102680.0,0.73925232]
[1746753903188,0.3755651,102690.0,102680.0,0.74025232]
[1746753903377,0.5703552,102690.0,102680.0,0.74025232]
[1746753903574,0.3755651,102690.0,102680.0,0.74025232]
[1746753903880,0.22690482,102690.0,102680.0,0.74025232]
[1746753904087,0.42169492,102690.0,102680.0,0.74025232]
[1746753904380,0.22690482,102690.0,102680.0,0.74025232]
[1746753904580,0.42169492,102690.0,102680.0,0.6314091]
[1746753904778,0.22690482,102690.0,102680.0,0.74025232]
[1746753904980,0.42169492,102690.0,102680.0,0.6314091]
[1746753905180,0.78249492,102690.0,102680.0,0.44944322]
[1746753905388,0.78249492,102690.0,102680.0,0.163]
[1746753906174,0.78249492,102690.0,102680.0,0.003]
[1746753906378,0.78249492,102690.0,102680.0,0.1978091]
[1746753907082,0.78249492,102690.0,102680.0,0.003]
[1746753907485,0.89133814,102690.0,102680.0,0.003]
[1746753907880,0.78249492,102690.0,102680.0,0.003]
[1746753908290,0.94249492,102690.0,102680.0,0.003]
[1746753909079,0.94249492,102690.0,102680.0,0.1978091]
[1746753909080,0.74770482,102690.0,102680.0,0.1978091]
[1746753909283,0.78249492,102690.0,102680.0,0.003]
[1746753909477,0.78249492,102690.0,102680.0,0.11184322]
[1746753909681,0.78549492,102690.0,102680.0,0.11084322]
[1746753910485,0.78749492,102690.0,102680.0,0.001]
[1746753911191,0.1948091,102680.0,102670.0,0.94496892]
[1746753911383,0.4694091,102680.0,102670.0,0.4753257]
[1746753911585,0.4694091,102680.0,102670.0,0.58416892]
[1746753911892,0.7328102,102680.0,102670.0,0.10884322]
[1746753912186,0.6155256,102680.0,102670.0,0.10884322]
[1746753912387,0.6165256,102680.0,102670.0,0.10984322]
[1746753913086,0.6175256,102680.0,102670.0,0.10984322]
[1746753913285,0.5201133,102680.0,102670.0,0.30467122]
[1746753913486,0.5201133,102680.0,102670.0,0.49067122]
[1746753913787,0.8809133,102680.0,102670.0,0.29584322]
[1746753913993,0.8809133,102680.0,102670.0,0.10984322]
[1746753914379,0.4714091,102680.0,102670.0,0.195828]
[1746753914587,0.22177247,102680.0,102670.0,0.75507122]
[1746753914782,0.13387247,102680.0,102670.0,0.85147122]
[1746753915283,0.32868157,102680.0,102670.0,0.902628]
[1746753915585,0.32868157,102680.0,102670.0,1.01147122]
[1746753915992,0.32868157,102680.0,102670.0,0.902628]
[1746753916181,0.32868157,102680.0,102670.0,1.01147122]
[1746753916377,0.78368157,102680.0,102670.0,0.347]
[1746753916584,0.78368157,102680.0,102670.0,0.65067122]
[1746753916793,0.42288157,102680.0,102670.0,0.65067122]
[1746753917390,0.42288157,102680.0,102670.0,0.49067122]
[1746753917781,0.42288157,102680.0,102670.0,0.85147122]
[1746753918489,0.57149689,102680.0,102670.0,0.85147122]
[1746753919583,0.57149689,102680.0,102670.0,0.742628]
[1746753919784,0.57149689,102680.0,102670.0,0.85147122]
[1746753920391,0.93229689,102680.0,102670.0,0.001]
[1746753920988,0.93229689,102680.0,102670.0,0.10984322]
[1746753921383,0.93229689,102680.0,102670.0,0.001]
[1746753921784,0.93229689,102680.0,102670.0,0.195828]
[1746753921987,0.93229689,102680.0,102670.0,0.30467122]
[1746753922186,0.93229689,102680.0,102670.0,0.39527122]
[1746753922893,0.93229689,102680.0,102670.0,0.30467122]
[1746753923492,0.93229689,102680.0,102670.0,0.001]
[1746753923691,0.048707,102670.0,102640.0,0.11631053]
[1746753923890,0.194885,102640.0,102630.0,0.10981758]
[1746753924193,0.555685,102640.0,102630.0,0.39532158]
[1746753924489,0.821585,102640.0,102630.0,0.20041758]
[1746753924697,0.821585,102640.0,102630.0,0.39532158]
[1746753924990,0.821585,102640.0,102630.0,0.09157436]